[Event "Titled Tuesday Blitz August 15 Late 2023"]
[White "Hajiyev, Kanan"]
[Black "Kielinkei"]
[WhiteFideId "13404148"]
[WhiteElo "2525"]
[BlackElo "2394"]
[Result "0-1"]
[Round "10"]
[TimeControl "180+1"]
[Date "2023.08.15"]
[WhiteClock "0:00:28"]
[BlackClock "0:00:11"]
[Board "82"]

1. d4 {[%clk 0:03:00]}  Nf6 {[%clk 0:02:58]} 2. c4 {[%clk 0:03:01]}  e6 {[%clk 0:02:58]} 3. Nf3 {[%clk 0:03:02]}  c5 {[%clk 0:02:57]} 4. Nc3 {[%clk 0:03:01]}  cxd4 {[%clk 0:02:56]} 5. Nxd4 {[%clk 0:03:01]}  Bb4 {[%clk 0:02:57]} 6. Bd2 {[%clk 0:03:00]}  O-O {[%clk 0:02:50]} 7. e3 {[%clk 0:03:00]}  d5 {[%clk 0:02:49]} 8. cxd5 {[%clk 0:03:00]}  Nxd5 {[%clk 0:02:48]} 9. Nxd5 {[%clk 0:03:00]}  Bxd2+ {[%clk 0:02:48]} 10. Qxd2 {[%clk 0:03:01]}  Qxd5 {[%clk 0:02:49]} 11. Be2 {[%clk 0:02:58]}  e5 {[%clk 0:02:16]} 12. Bf3 {[%clk 0:02:50]}  e4 {[%clk 0:02:16]} 13. Be2 {[%clk 0:02:49]}  Nc6 {[%clk 0:02:16]} 14. Nxc6 {[%clk 0:02:45]}  Qxc6 {[%clk 0:02:17]} 15. O-O {[%clk 0:02:43]}  Qg6 {[%clk 0:02:11]} 16. Rfd1 {[%clk 0:02:40]}  Bh3 {[%clk 0:02:06]} 17. Bf1 {[%clk 0:02:36]}  Bg4 {[%clk 0:02:07]} 18. Be2 {[%clk 0:02:33]}  Bf3 {[%clk 0:02:02]} 19. Bxf3 {[%clk 0:02:25]}  exf3 {[%clk 0:02:02]} 20. g3 {[%clk 0:02:24]}  h5 {[%clk 0:01:46]} 21. Qd6 {[%clk 0:02:20]}  Qg4 {[%clk 0:01:36]} 22. Qf4 {[%clk 0:02:13]}  Rac8 {[%clk 0:01:26]} 23. Rd2 {[%clk 0:02:01]}  Rfd8 {[%clk 0:01:21]} 24. Rxd8+ {[%clk 0:01:45]}  Rxd8 {[%clk 0:01:22]} 25. h3 {[%clk 0:01:42]}  Qxf4 {[%clk 0:01:13]} 26. exf4 {[%clk 0:01:35]}  Rd2 {[%clk 0:01:13]} 27. b4 {[%clk 0:01:33]}  f5 {[%clk 0:01:08]} 28. b5 {[%clk 0:01:31]}  Kf7 {[%clk 0:01:03]} 29. a4 {[%clk 0:01:31]}  Ke6 {[%clk 0:01:03]} 30. Re1+ {[%clk 0:01:28]}  Re2 {[%clk 0:01:02]} 31. Rc1 {[%clk 0:01:26]}  Kd6 {[%clk 0:00:52]} 32. Rc3 {[%clk 0:01:20]}  Re1+ {[%clk 0:00:52]} 33. Kh2 {[%clk 0:01:19]}  Ra1 {[%clk 0:00:52]} 34. Rxf3 {[%clk 0:01:17]}  Rxa4 {[%clk 0:00:53]} 35. Re3 {[%clk 0:01:13]}  Re4 {[%clk 0:00:46]} 36. Ra3 {[%clk 0:01:12]}  Kc5 {[%clk 0:00:43]} 37. Rxa7 {[%clk 0:01:11]}  Kb6 {[%clk 0:00:44]} 38. Ra8 {[%clk 0:01:09]}  Kxb5 {[%clk 0:00:44]} 39. Rf8 {[%clk 0:01:09]}  g6 {[%clk 0:00:38]} 40. Rf6 {[%clk 0:01:09]}  Kc5 {[%clk 0:00:31]} 41. Rxg6 {[%clk 0:01:05]}  b5 {[%clk 0:00:29]} 42. Rg5 {[%clk 0:01:06]}  b4 {[%clk 0:00:28]} 43. Rxf5+ {[%clk 0:01:06]}  Kc4 {[%clk 0:00:26]} 44. Rxh5 {[%clk 0:01:06]}  b3 {[%clk 0:00:26]} 45. Rh8 {[%clk 0:01:00]}  Kc3 {[%clk 0:00:27]} 46. Rc8+ {[%clk 0:00:59]}  Rc4 {[%clk 0:00:27]} 47. Rb8 {[%clk 0:00:59]}  Rb4 {[%clk 0:00:27]} 48. Rc8+ {[%clk 0:01:00]}  Kd2 {[%clk 0:00:20]} 49. Rd8+ {[%clk 0:00:59]}  Ke2 {[%clk 0:00:20]} 50. Kg2 {[%clk 0:00:42]}  b2 {[%clk 0:00:19]} 51. Re8+ {[%clk 0:00:43]}  Kd2 {[%clk 0:00:15]} 52. Rd8+ {[%clk 0:00:44]}  Kc2 {[%clk 0:00:14]} 53. Rc8+ {[%clk 0:00:44]}  Kb3 {[%clk 0:00:15]} 54. Re8 {[%clk 0:00:40]}  b1=Q {[%clk 0:00:15]} 55. Re3+ {[%clk 0:00:41]}  Ka4 {[%clk 0:00:15]} 56. h4 {[%clk 0:00:40]}  Re4 {[%clk 0:00:15]} 57. Rf3 {[%clk 0:00:37]}  Kb5 {[%clk 0:00:12]} 58. f5 {[%clk 0:00:37]}  Re1 {[%clk 0:00:11]} 59. f6 {[%clk 0:00:33]}  Qe4 {[%clk 0:00:09]} 60. f7 {[%clk 0:00:31]}  Rg1+ {[%clk 0:00:09]} 61. Kxg1 {[%clk 0:00:31]}  Qxf3 {[%clk 0:00:10]} 62. Kf1 {[%clk 0:00:29]}  Qxf7 {[%clk 0:00:10]} 63. Kg2 {[%clk 0:00:30]}  Kc5 {[%clk 0:00:10]} 64. g4 {[%clk 0:00:30]}  Kd5 {[%clk 0:00:11]} 65. Kg3 {[%clk 0:00:31]}  Ke5 {[%clk 0:00:11]} 66. h5 {[%clk 0:00:29]}  Qf4+ {[%clk 0:00:11]} 67. Kh4 {[%clk 0:00:29]}  Kf6 {[%clk 0:00:12]} 68. f3 {[%clk 0:00:28]}  Qh2# {[%clk 0:00:11]} 0-1


[Site "https://www.chess.com"]

[Event "Titled Tuesday Blitz August 15 Late 2023"]
[White "Reprintsev, Alexander"]
[Black "Kujawski, Adam"]
[WhiteFideId "14100541"]
[BlackFideId "1100920"]
[WhiteElo "2487"]
[BlackElo "2332"]
[Result "1/2-1/2"]
[Round "10"]
[TimeControl "180+1"]
[Date "2023.08.15"]
[WhiteClock "0:00:36"]
[BlackClock "0:00:12"]
[Board "83"]

1. e4 {[%clk 0:03:00]}  e5 {[%clk 0:02:52]} 2. Nf3 {[%clk 0:02:59]}  Nc6 {[%clk 0:02:52]} 3. Bc4 {[%clk 0:02:59]}  Nf6 {[%clk 0:02:52]} 4. Ng5 {[%clk 0:02:59]}  d5 {[%clk 0:02:52]} 5. exd5 {[%clk 0:02:58]}  Na5 {[%clk 0:02:52]} 6. Bb5+ {[%clk 0:02:57]}  c6 {[%clk 0:02:53]} 7. dxc6 {[%clk 0:02:57]}  bxc6 {[%clk 0:02:54]} 8. Bd3 {[%clk 0:02:57]}  Ng4 {[%clk 0:02:53]} 9. Nh3 {[%clk 0:02:56]}  Bd6 {[%clk 0:02:31]} 10. Nc3 {[%clk 0:02:44]}  O-O {[%clk 0:02:26]} 11. O-O {[%clk 0:02:13]}  e4 {[%clk 0:02:24]} 12. Bxe4 {[%clk 0:02:08]}  Bxh2+ {[%clk 0:02:23]} 13. Kh1 {[%clk 0:02:08]}  Bc7 {[%clk 0:02:09]} 14. d3 {[%clk 0:02:05]}  f5 {[%clk 0:01:43]} 15. Bf3 {[%clk 0:02:00]}  Qh4 {[%clk 0:01:39]} 16. Bg5 {[%clk 0:01:57]}  Qh5 {[%clk 0:01:32]} 17. Qd2 {[%clk 0:01:49]}  h6 {[%clk 0:01:27]} 18. Bf4 {[%clk 0:01:49]}  Qf7 {[%clk 0:01:02]} 19. b4 {[%clk 0:01:45]}  Nb7 {[%clk 0:00:57]} 20. Bxc6 {[%clk 0:01:43]}  Rb8 {[%clk 0:00:53]} 21. Bd5 {[%clk 0:01:40]}  Be6 {[%clk 0:00:51]} 22. Bxe6 {[%clk 0:01:40]}  Qxe6 {[%clk 0:00:51]} 23. Bxc7 {[%clk 0:01:40]}  Rbc8 {[%clk 0:00:51]} 24. Bg3 {[%clk 0:01:35]}  g5 {[%clk 0:00:43]} 25. Rae1 {[%clk 0:01:33]}  Qf6 {[%clk 0:00:42]} 26. Nd5 {[%clk 0:01:30]}  Qf7 {[%clk 0:00:40]} 27. c4 {[%clk 0:01:29]}  f4 {[%clk 0:00:36]} 28. Ndxf4 {[%clk 0:01:28]}  gxf4 {[%clk 0:00:35]} 29. Qxf4 {[%clk 0:01:29]}  Qxf4 {[%clk 0:00:35]} 30. Bxf4 {[%clk 0:01:27]}  h5 {[%clk 0:00:23]} 31. f3 {[%clk 0:01:27]}  Nf6 {[%clk 0:00:22]} 32. Re7 {[%clk 0:01:22]}  Rf7 {[%clk 0:00:21]} 33. Rxf7 {[%clk 0:01:19]}  Kxf7 {[%clk 0:00:21]} 34. Ng5+ {[%clk 0:01:20]}  Kg6 {[%clk 0:00:21]} 35. Ne4 {[%clk 0:01:19]}  Rd8 {[%clk 0:00:18]} 36. Bg5 {[%clk 0:01:12]}  Nxe4 {[%clk 0:00:16]} 37. Bxd8 {[%clk 0:01:04]}  Ng3+ {[%clk 0:00:16]} 38. Kg1 {[%clk 0:01:04]}  Nxf1 {[%clk 0:00:17]} 39. Kxf1 {[%clk 0:00:59]}  Nxd8 {[%clk 0:00:16]} 40. Ke2 {[%clk 0:00:59]}  Kf5 {[%clk 0:00:16]} 41. Ke3 {[%clk 0:00:58]}  h4 {[%clk 0:00:16]} 42. d4 {[%clk 0:00:58]}  Ne6 {[%clk 0:00:16]} 43. a3 {[%clk 0:00:50]}  Nf4 {[%clk 0:00:16]} 44. Kf2 {[%clk 0:00:50]}  Ke6 {[%clk 0:00:15]} 45. g3 {[%clk 0:00:47]}  hxg3+ {[%clk 0:00:14]} 46. Kxg3 {[%clk 0:00:46]}  Ne2+ {[%clk 0:00:15]} 47. Kg4 {[%clk 0:00:45]}  Nxd4 {[%clk 0:00:16]} 48. f4 {[%clk 0:00:41]}  Nc2 {[%clk 0:00:15]} 49. f5+ {[%clk 0:00:41]}  Kf6 {[%clk 0:00:14]} 50. c5 {[%clk 0:00:41]}  Nxa3 {[%clk 0:00:13]} 51. c6 {[%clk 0:00:40]}  Nb5 {[%clk 0:00:13]} 52. Kf4 {[%clk 0:00:41]}  Nc7 {[%clk 0:00:13]} 53. Ke4 {[%clk 0:00:41]}  Nb5 {[%clk 0:00:12]} 54. Kf4 {[%clk 0:00:37]}  Nc7 {[%clk 0:00:12]} 55. Ke4 {[%clk 0:00:36]}  Nb5 {[%clk 0:00:12]} 56. Kf4 {[%clk 0:00:36]} 1/2-1/2


[Site "https://www.chess.com"]

[Event "Titled Tuesday Blitz August 15 Late 2023"]
[White "Barwinska, Ewa"]
[Black "Pesotskiy, Mikhail"]
[WhiteFideId "21833761"]
[BlackFideId "34164453"]
[WhiteElo "2297"]
[BlackElo "2426"]
[Result "0-1"]
[Round "10"]
[TimeControl "180+1"]
[Date "2023.08.15"]
[WhiteClock "0:00:00"]
[BlackClock "0:00:12"]
[Board "84"]

1. e4 {[%clk 0:03:00]}  e6 {[%clk 0:02:58]} 2. d4 {[%clk 0:03:00]}  d5 {[%clk 0:02:56]} 3. exd5 {[%clk 0:03:00]}  exd5 {[%clk 0:02:57]} 4. Bd3 {[%clk 0:03:01]}  Nf6 {[%clk 0:02:52]} 5. Ne2 {[%clk 0:03:01]}  Be7 {[%clk 0:02:44]} 6. O-O {[%clk 0:03:00]}  O-O {[%clk 0:02:45]} 7. c3 {[%clk 0:02:59]}  Bg4 {[%clk 0:02:45]} 8. Qc2 {[%clk 0:02:59]}  c6 {[%clk 0:02:44]} 9. Bg5 {[%clk 0:02:57]}  Nbd7 {[%clk 0:02:44]} 10. f3 {[%clk 0:02:56]}  Bh5 {[%clk 0:02:44]} 11. Ng3 {[%clk 0:02:57]}  Bg6 {[%clk 0:02:45]} 12. Nf5 {[%clk 0:02:56]}  Bxf5 {[%clk 0:02:44]} 13. Bxf5 {[%clk 0:02:57]}  Re8 {[%clk 0:02:45]} 14. Nd2 {[%clk 0:02:54]}  g6 {[%clk 0:02:36]} 15. Bd3 {[%clk 0:02:51]}  Nh5 {[%clk 0:02:35]} 16. Bxe7 {[%clk 0:02:40]}  Qxe7 {[%clk 0:02:36]} 17. f4 {[%clk 0:02:40]}  f5 {[%clk 0:01:24]} 18. Rae1 {[%clk 0:02:25]}  Qxe1 {[%clk 0:01:22]} 19. Rxe1 {[%clk 0:02:26]}  Rxe1+ {[%clk 0:01:22]} 20. Kf2 {[%clk 0:02:23]}  Re7 {[%clk 0:01:21]} 21. g3 {[%clk 0:02:15]}  Nhf6 {[%clk 0:01:19]} 22. Nf3 {[%clk 0:02:14]}  Ng4+ {[%clk 0:01:19]} 23. Kg1 {[%clk 0:02:05]}  Ndf6 {[%clk 0:01:06]} 24. Ne5 {[%clk 0:01:59]}  Nxe5 {[%clk 0:01:05]} 25. dxe5 {[%clk 0:01:54]}  Ne4 {[%clk 0:01:06]} 26. Bxe4 {[%clk 0:01:50]}  dxe4 {[%clk 0:01:04]} 27. Qd2 {[%clk 0:01:29]}  Kf8 {[%clk 0:01:03]} 28. Qd6 {[%clk 0:01:23]}  Ke8 {[%clk 0:01:03]} 29. Qf6 {[%clk 0:01:22]}  Rd8 {[%clk 0:01:03]} 30. e6 {[%clk 0:01:19]}  Rd1+ {[%clk 0:00:52]} 31. Kg2 {[%clk 0:01:18]}  Kd8 {[%clk 0:00:50]} 32. Qf8+ {[%clk 0:01:07]}  Re8 {[%clk 0:00:50]} 33. Qf6+ {[%clk 0:01:05]}  Kc8 {[%clk 0:00:46]} 34. Qf7 {[%clk 0:00:59]}  Rd2+ {[%clk 0:00:35]} 35. Kh3 {[%clk 0:00:58]}  Rdd8 {[%clk 0:00:34]} 36. e7 {[%clk 0:00:56]}  e3 {[%clk 0:00:32]} 37. exd8=Q+ {[%clk 0:00:47]}  Kxd8 {[%clk 0:00:33]} 38. Qf6+ {[%clk 0:00:33]}  Kc8 {[%clk 0:00:29]} 39. Qf7 {[%clk 0:00:21]}  Re4 {[%clk 0:00:24]} 40. Qf8+ {[%clk 0:00:08]}  Kc7 {[%clk 0:00:21]} 41. Qg7+ {[%clk 0:00:06]}  Kb6 {[%clk 0:00:21]} 42. Qd7 {[%clk 0:00:05]}  e2 {[%clk 0:00:19]} 43. Qd8+ {[%clk 0:00:06]}  Ka6 {[%clk 0:00:19]} 44. Qd3+ {[%clk 0:00:06]}  Kb6 {[%clk 0:00:17]} 45. Qd8+ {[%clk 0:00:06]}  Ka6 {[%clk 0:00:17]} 46. Qd3+ {[%clk 0:00:07]}  b5 {[%clk 0:00:17]} 47. Qd7 {[%clk 0:00:03]}  Kb6 {[%clk 0:00:09]} 48. Qd8+ {[%clk 0:00:03]}  Kc5 {[%clk 0:00:09]} 49. Qf8+ {[%clk 0:00:02]}  Kc4 {[%clk 0:00:10]} 50. Qf7+ {[%clk 0:00:02]}  Kd3 {[%clk 0:00:10]} 51. Qd7+ {[%clk 0:00:02]}  Kc2 {[%clk 0:00:11]} 52. Qxa7 {[%clk 0:00:00]}  e1=Q {[%clk 0:00:12]} 0-1


[Site "https://www.chess.com"]

[Event "Titled Tuesday Blitz August 15 Late 2023"]
[White "Vila Dupla, Aurelio"]
[Black "Fernandez Garcia, Gumersindo"]
[WhiteFideId "2203383"]
[BlackFideId "24516740"]
[WhiteElo "2154"]
[BlackElo "2397"]
[Result "1/2-1/2"]
[Round "10"]
[TimeControl "180+1"]
[Date "2023.08.15"]
[WhiteClock "0:00:13"]
[BlackClock "0:00:27"]
[Board "86"]

1. Nf3 {[%clk 0:03:00]}  Nf6 {[%clk 0:02:59]} 2. d4 {[%clk 0:02:59]}  g6 {[%clk 0:02:57]} 3. g3 {[%clk 0:02:58]}  Bg7 {[%clk 0:02:57]} 4. Bg2 {[%clk 0:02:59]}  O-O {[%clk 0:02:58]} 5. O-O {[%clk 0:02:59]}  d6 {[%clk 0:02:59]} 6. c4 {[%clk 0:02:59]}  Nbd7 {[%clk 0:02:59]} 7. Nc3 {[%clk 0:02:59]}  e5 {[%clk 0:03:00]} 8. h3 {[%clk 0:02:58]}  Re8 {[%clk 0:02:59]} 9. Re1 {[%clk 0:02:56]}  exd4 {[%clk 0:02:56]} 10. Nxd4 {[%clk 0:02:55]}  a6 {[%clk 0:02:56]} 11. e4 {[%clk 0:02:41]}  Rb8 {[%clk 0:02:55]} 12. Bf4 {[%clk 0:02:38]}  Ne5 {[%clk 0:02:55]} 13. b3 {[%clk 0:02:36]}  c5 {[%clk 0:02:54]} 14. Nf3 {[%clk 0:02:34]}  Nxf3+ {[%clk 0:02:23]} 15. Qxf3 {[%clk 0:02:31]}  b5 {[%clk 0:02:18]} 16. Rad1 {[%clk 0:02:23]}  Rb6 {[%clk 0:02:09]} 17. Bg5 {[%clk 0:02:21]}  h6 {[%clk 0:01:07]} 18. Bxf6 {[%clk 0:02:19]}  Bxf6 {[%clk 0:01:08]} 19. Nd5 {[%clk 0:02:17]}  Bd4 {[%clk 0:01:08]} 20. cxb5 {[%clk 0:01:18]}  Rxb5 {[%clk 0:01:03]} 21. Rxd4 {[%clk 0:01:17]}  cxd4 {[%clk 0:01:00]} 22. Nf6+ {[%clk 0:01:18]}  Kg7 {[%clk 0:01:00]} 23. Nxe8+ {[%clk 0:01:18]}  Qxe8 {[%clk 0:01:01]} 24. Qd3 {[%clk 0:01:17]}  Qe5 {[%clk 0:00:56]} 25. Rd1 {[%clk 0:01:17]}  Rb4 {[%clk 0:00:50]} 26. a3 {[%clk 0:01:16]}  Rb5 {[%clk 0:00:50]} 27. b4 {[%clk 0:01:16]}  a5 {[%clk 0:00:46]} 28. Qxd4 {[%clk 0:01:16]}  axb4 {[%clk 0:00:45]} 29. axb4 {[%clk 0:01:15]}  Be6 {[%clk 0:00:39]} 30. f4 {[%clk 0:01:09]}  Qxd4+ {[%clk 0:00:39]} 31. Rxd4 {[%clk 0:01:09]}  Rb6 {[%clk 0:00:39]} 32. Kf2 {[%clk 0:01:07]}  Kf6 {[%clk 0:00:39]} 33. Ke3 {[%clk 0:01:07]}  Ke7 {[%clk 0:00:39]} 34. h4 {[%clk 0:01:03]}  Ra6 {[%clk 0:00:38]} 35. b5 {[%clk 0:00:58]}  Ra2 {[%clk 0:00:34]} 36. Rd2 {[%clk 0:00:51]}  Ra3+ {[%clk 0:00:32]} 37. Kd4 {[%clk 0:00:37]}  Rb3 {[%clk 0:00:32]} 38. Bf1 {[%clk 0:00:34]}  Bd7 {[%clk 0:00:30]} 39. Ra2 {[%clk 0:00:21]}  Bxb5 {[%clk 0:00:27]} 40. Ra7+ {[%clk 0:00:21]}  Kf6 {[%clk 0:00:24]} 41. Rb7 {[%clk 0:00:18]}  Ba4 {[%clk 0:00:21]} 42. Rxb3 {[%clk 0:00:16]}  Bxb3 {[%clk 0:00:22]} 43. Bh3 {[%clk 0:00:16]}  Be6 {[%clk 0:00:19]} 44. Bg2 {[%clk 0:00:14]}  Ke7 {[%clk 0:00:19]} 45. Bf1 {[%clk 0:00:13]}  Kd7 {[%clk 0:00:20]} 46. Bb5+ {[%clk 0:00:13]}  Kc7 {[%clk 0:00:20]} 47. e5 {[%clk 0:00:14]}  dxe5+ {[%clk 0:00:19]} 48. Kxe5 {[%clk 0:00:14]}  h5 {[%clk 0:00:18]} 49. Kf6 {[%clk 0:00:14]}  Kd8 {[%clk 0:00:19]} 50. Bc6 {[%clk 0:00:13]}  Bc4 {[%clk 0:00:19]} 51. Ba4 {[%clk 0:00:13]}  Bd5 {[%clk 0:00:18]} 52. Bc2 {[%clk 0:00:10]}  Ke8 {[%clk 0:00:17]} 53. f5 {[%clk 0:00:10]}  gxf5 {[%clk 0:00:17]} 54. Bxf5 {[%clk 0:00:10]}  Kf8 {[%clk 0:00:17]} 55. Bd3 {[%clk 0:00:09]}  Bf3 {[%clk 0:00:17]} 56. Bc4 {[%clk 0:00:08]}  Kg8 {[%clk 0:00:16]} 57. Bxf7+ {[%clk 0:00:08]}  Kh7 {[%clk 0:00:16]} 58. Bg6+ {[%clk 0:00:08]}  Kh6 {[%clk 0:00:16]} 59. Bf5 {[%clk 0:00:08]}  Be2 {[%clk 0:00:16]} 60. Be6 {[%clk 0:00:08]}  Bd1 {[%clk 0:00:17]} 61. Bd5 {[%clk 0:00:08]}  Be2 {[%clk 0:00:16]} 62. Be4 {[%clk 0:00:08]}  Bd1 {[%clk 0:00:17]} 63. Ke5 {[%clk 0:00:08]}  Be2 {[%clk 0:00:17]} 64. Kf4 {[%clk 0:00:08]}  Bd1 {[%clk 0:00:17]} 65. Bf3 {[%clk 0:00:09]}  Bc2 {[%clk 0:00:18]} 66. Ke5 {[%clk 0:00:09]}  Bb3 {[%clk 0:00:18]} 67. Kf6 {[%clk 0:00:09]}  Bc2 {[%clk 0:00:18]} 68. Bd5 {[%clk 0:00:06]}  Bd3 {[%clk 0:00:19]} 69. Bf3 {[%clk 0:00:06]}  Bc2 {[%clk 0:00:19]} 70. Ke5 {[%clk 0:00:06]}  Bd3 {[%clk 0:00:19]} 71. Kf4 {[%clk 0:00:06]}  Bc4 {[%clk 0:00:19]} 72. Ke5 {[%clk 0:00:06]}  Bf7 {[%clk 0:00:19]} 73. Kf6 {[%clk 0:00:06]}  Be8 {[%clk 0:00:20]} 74. Ke7 {[%clk 0:00:06]}  Bg6 {[%clk 0:00:20]} 75. Kf6 {[%clk 0:00:05]}  Bd3 {[%clk 0:00:20]} 76. Ke7 {[%clk 0:00:06]}  Bf1 {[%clk 0:00:20]} 77. Kf6 {[%clk 0:00:06]}  Bh3 {[%clk 0:00:21]} 78. Ke7 {[%clk 0:00:06]}  Kg6 {[%clk 0:00:21]} 79. Bxh5+ {[%clk 0:00:05]}  Kxh5 {[%clk 0:00:21]} 80. Kf6 {[%clk 0:00:06]}  Bg4 {[%clk 0:00:20]} 81. Ke5 {[%clk 0:00:06]}  Bd1 {[%clk 0:00:21]} 82. g4+ {[%clk 0:00:06]}  Bxg4 {[%clk 0:00:19]} 83. Kd4 {[%clk 0:00:06]}  Be2 {[%clk 0:00:20]} 84. Ke5 {[%clk 0:00:06]}  Ba6 {[%clk 0:00:20]} 85. Kd4 {[%clk 0:00:07]}  Bb7 {[%clk 0:00:21]} 86. Kc5 {[%clk 0:00:08]}  Bc8 {[%clk 0:00:22]} 87. Kc6 {[%clk 0:00:09]}  Be6 {[%clk 0:00:23]} 88. Kd6 {[%clk 0:00:10]}  Bg4 {[%clk 0:00:24]} 89. Kc5 {[%clk 0:00:11]}  Bh3 {[%clk 0:00:25]} 90. Kd4 {[%clk 0:00:11]}  Bg2 {[%clk 0:00:26]} 91. Kc5 {[%clk 0:00:12]}  Bf3 {[%clk 0:00:26]} 92. Kd6 {[%clk 0:00:13]}  Kxh4 {[%clk 0:00:27]} 1/2-1/2


[Site "https://www.chess.com"]

[Event "Titled Tuesday Blitz August 15 Late 2023"]
[White "ExchangeAB"]
[Black "Fernandez Bustamante, Leancy B."]
[BlackFideId "3523870"]
[WhiteElo "2410"]
[BlackElo "2250"]
[Result "0-1"]
[Round "10"]
[TimeControl "180+1"]
[Date "2023.08.15"]
[WhiteClock "0:00:00"]
[BlackClock "0:00:08"]
[Board "87"]

1. d4 {[%clk 0:03:00]}  c5 {[%clk 0:03:00]} 2. e3 {[%clk 0:03:00]}  cxd4 {[%clk 0:03:01]} 3. exd4 {[%clk 0:02:59]}  d6 {[%clk 0:02:58]} 4. Nf3 {[%clk 0:02:59]}  Nf6 {[%clk 0:02:58]} 5. Be2 {[%clk 0:02:59]}  g6 {[%clk 0:02:59]} 6. O-O {[%clk 0:02:59]}  Bg7 {[%clk 0:02:59]} 7. c3 {[%clk 0:03:00]}  O-O {[%clk 0:03:00]} 8. Re1 {[%clk 0:03:00]}  a6 {[%clk 0:03:00]} 9. Nbd2 {[%clk 0:03:00]}  b5 {[%clk 0:03:00]} 10. a3 {[%clk 0:03:00]}  Bb7 {[%clk 0:02:59]} 11. Nf1 {[%clk 0:03:00]}  Nbd7 {[%clk 0:02:58]} 12. Ng3 {[%clk 0:03:01]}  h5 {[%clk 0:02:56]} 13. Bg5 {[%clk 0:03:00]}  Re8 {[%clk 0:02:54]} 14. Qd2 {[%clk 0:03:00]}  Nb6 {[%clk 0:02:44]} 15. Bh6 {[%clk 0:02:53]}  Nc4 {[%clk 0:02:36]} 16. Bxc4 {[%clk 0:02:47]}  bxc4 {[%clk 0:02:37]} 17. Bxg7 {[%clk 0:02:47]}  Kxg7 {[%clk 0:02:36]} 18. Ng5 {[%clk 0:02:29]}  h4 {[%clk 0:02:27]} 19. N3e4 {[%clk 0:02:24]}  Nxe4 {[%clk 0:02:25]} 20. Nxe4 {[%clk 0:02:25]}  Qa5 {[%clk 0:02:16]} 21. Rad1 {[%clk 0:02:07]}  Qf5 {[%clk 0:01:58]} 22. Ng5 {[%clk 0:01:26]}  Rab8 {[%clk 0:01:20]} 23. d5 {[%clk 0:01:11]}  Rbc8 {[%clk 0:00:58]} 24. Qd4+ {[%clk 0:01:07]}  Qf6 {[%clk 0:00:48]} 25. Nf3 {[%clk 0:00:49]}  h3 {[%clk 0:00:39]} 26. Qxf6+ {[%clk 0:00:44]}  exf6 {[%clk 0:00:40]} 27. gxh3 {[%clk 0:00:20]}  Rxe1+ {[%clk 0:00:37]} 28. Nxe1 {[%clk 0:00:21]}  Rc5 {[%clk 0:00:34]} 29. Nc2 {[%clk 0:00:20]}  Bxd5 {[%clk 0:00:33]} 30. Ne3 {[%clk 0:00:20]}  Be6 {[%clk 0:00:32]} 31. Rxd6 {[%clk 0:00:19]}  Rb5 {[%clk 0:00:31]} 32. Rd2 {[%clk 0:00:19]}  Bxh3 {[%clk 0:00:30]} 33. f4 {[%clk 0:00:20]}  Be6 {[%clk 0:00:29]} 34. Kf2 {[%clk 0:00:20]}  Rh5 {[%clk 0:00:28]} 35. Kg3 {[%clk 0:00:20]}  Rh3+ {[%clk 0:00:27]} 36. Kf2 {[%clk 0:00:19]}  Rxh2+ {[%clk 0:00:27]} 37. Ke1 {[%clk 0:00:19]}  Rxd2 {[%clk 0:00:26]} 38. Kxd2 {[%clk 0:00:20]}  Kf8 {[%clk 0:00:19]} 39. Nc2 {[%clk 0:00:19]}  g5 {[%clk 0:00:18]} 40. Ke3 {[%clk 0:00:19]}  g4 {[%clk 0:00:17]} 41. Nb4 {[%clk 0:00:16]}  a5 {[%clk 0:00:13]} 42. Nc6 {[%clk 0:00:16]}  a4 {[%clk 0:00:14]} 43. Nd4 {[%clk 0:00:14]}  Bd5 {[%clk 0:00:13]} 44. f5 {[%clk 0:00:13]}  g3 {[%clk 0:00:13]} 45. Ne2 {[%clk 0:00:12]}  g2 {[%clk 0:00:12]} 46. Kf2 {[%clk 0:00:12]}  Ke7 {[%clk 0:00:11]} 47. Nf4 {[%clk 0:00:12]}  Kd6 {[%clk 0:00:11]} 48. Ne2 {[%clk 0:00:05]}  Ke5 {[%clk 0:00:10]} 49. Nd4 {[%clk 0:00:06]}  Ke4 {[%clk 0:00:09]} 50. Kg1 {[%clk 0:00:06]}  Kd3 {[%clk 0:00:10]} 51. Nb5 {[%clk 0:00:01]}  Kc2 {[%clk 0:00:09]} 52. Nc7 {[%clk 0:00:00]}  Be4 {[%clk 0:00:08]} 0-1


[Site "https://www.chess.com"]

[Event "Titled Tuesday Blitz August 15 Late 2023"]
[White "Melikhov, Evgeny V."]
[Black "rikchessmx"]
[WhiteFideId "4122046"]
[WhiteElo "2393"]
[BlackElo "2288"]
[Result "1-0"]
[Round "10"]
[TimeControl "180+1"]
[Date "2023.08.15"]
[WhiteClock "0:01:01"]
[BlackClock "0:00:53"]
[Board "89"]

1. d4 {[%clk 0:03:00]}  Nf6 {[%clk 0:02:55]} 2. c4 {[%clk 0:03:00]}  e6 {[%clk 0:02:54]} 3. Nc3 {[%clk 0:03:01]}  d5 {[%clk 0:02:54]} 4. cxd5 {[%clk 0:03:00]}  exd5 {[%clk 0:02:54]} 5. Bg5 {[%clk 0:03:01]}  Nbd7 {[%clk 0:02:52]} 6. e3 {[%clk 0:03:00]}  Be7 {[%clk 0:02:52]} 7. Bd3 {[%clk 0:03:00]}  O-O {[%clk 0:02:52]} 8. Qc2 {[%clk 0:03:00]}  Re8 {[%clk 0:02:50]} 9. Nf3 {[%clk 0:02:57]}  c6 {[%clk 0:02:50]} 10. O-O {[%clk 0:02:56]}  g6 {[%clk 0:02:47]} 11. h3 {[%clk 0:02:52]}  Ne4 {[%clk 0:02:47]} 12. Bxe4 {[%clk 0:02:47]}  Bxg5 {[%clk 0:02:45]} 13. Bd3 {[%clk 0:02:43]}  Bf6 {[%clk 0:02:42]} 14. b4 {[%clk 0:02:43]}  a6 {[%clk 0:02:40]} 15. a4 {[%clk 0:02:43]}  b5 {[%clk 0:02:39]} 16. axb5 {[%clk 0:02:41]}  cxb5 {[%clk 0:02:36]} 17. Nxb5 {[%clk 0:02:36]}  Qb6 {[%clk 0:02:32]} 18. Nc7 {[%clk 0:02:34]}  Bb7 {[%clk 0:02:30]} 19. Nxa8 {[%clk 0:02:33]}  Rxa8 {[%clk 0:02:28]} 20. Rfc1 {[%clk 0:02:25]}  Kg7 {[%clk 0:02:21]} 21. Qc7 {[%clk 0:02:21]}  Bc8 {[%clk 0:02:12]} 22. Qxb6 {[%clk 0:02:19]}  Nxb6 {[%clk 0:02:12]} 23. b5 {[%clk 0:02:15]}  a5 {[%clk 0:02:10]} 24. Rc6 {[%clk 0:02:11]}  Bd8 {[%clk 0:02:09]} 25. Ne5 {[%clk 0:02:06]}  f6 {[%clk 0:02:02]} 26. Nf3 {[%clk 0:01:58]}  Bd7 {[%clk 0:02:01]} 27. Rc5 {[%clk 0:01:51]}  Be7 {[%clk 0:01:59]} 28. Rc7 {[%clk 0:01:48]}  Bd6 {[%clk 0:01:56]} 29. Rb7 {[%clk 0:01:44]}  Kh6 {[%clk 0:01:49]} 30. Rxb6 {[%clk 0:01:44]}  Bb4 {[%clk 0:01:47]} 31. Rb7 {[%clk 0:01:40]}  Bc8 {[%clk 0:01:47]} 32. Rc7 {[%clk 0:01:38]}  a4 {[%clk 0:01:44]} 33. b6 {[%clk 0:01:38]}  a3 {[%clk 0:01:43]} 34. b7 {[%clk 0:01:38]}  Bxb7 {[%clk 0:01:44]} 35. Rxb7 {[%clk 0:01:38]}  Bd6 {[%clk 0:01:42]} 36. Ra2 {[%clk 0:01:36]}  Rc8 {[%clk 0:01:41]} 37. Rb3 {[%clk 0:01:30]}  Rc1+ {[%clk 0:01:39]} 38. Bf1 {[%clk 0:01:30]}  g5 {[%clk 0:01:38]} 39. Nd2 {[%clk 0:01:26]}  Kg6 {[%clk 0:01:33]} 40. Rb1 {[%clk 0:01:25]}  Rc3 {[%clk 0:01:30]} 41. Nb3 {[%clk 0:01:25]}  h5 {[%clk 0:01:25]} 42. Nc5 {[%clk 0:01:24]}  g4 {[%clk 0:01:19]} 43. hxg4 {[%clk 0:01:23]}  hxg4 {[%clk 0:01:19]} 44. Rb3 {[%clk 0:01:22]}  Rc1 {[%clk 0:01:18]} 45. Rbxa3 {[%clk 0:01:21]}  g3 {[%clk 0:01:16]} 46. fxg3 {[%clk 0:01:16]}  Bxg3 {[%clk 0:01:15]} 47. e4 {[%clk 0:01:13]}  Bd6 {[%clk 0:01:07]} 48. exd5 {[%clk 0:01:10]}  Rd1 {[%clk 0:01:06]} 49. Rd3 {[%clk 0:01:07]}  Rc1 {[%clk 0:01:03]} 50. Ra6 {[%clk 0:01:06]}  Bf4 {[%clk 0:00:53]} 51. d6 {[%clk 0:01:01]} 1-0


[Site "https://www.chess.com"]